Workbook

Sheet U87-MG Fig.1 proteins
C1: ABCB1 | G1: b-actin | K1: ABCG2
B3: Densitometry/Intensity ratio | C3: Background level | D3: Densitometry - Background level | F3: Densitometry/Intensity ratio | G3: Background level | H3: Densitometry - Background level | J3: Densitometry/Intensity ratio | K3: Background level | L3: Densitometry - Background level
A4: U87-MG control | B4: 889.175945 | C4: 751.81447 | D4: =B4-$C$4 -> 137.361475 | F4: 358119 | G4: 95523 | H4: =F4-$G$4 -> 262596 | J4: 643.311874 | K4: 619.178238 | L4: =J4-$K$4 -> 24.133636
A5: U87-MG control DMSO | B5: 861.02341 | D5: =B5-$C$4 -> 109.20894 | F5: 285890 | H5: =F5-$G$4 -> 190367 | J5: 635.859716 | L5: =J5-$K$4 -> 16.681478
A6: Elacridar DMSO | B6: 812.179816 | D6: =B6-$C$4 -> 60.365346 | F6: 279937 | H6: =F6-$G$4 -> 184414 | J6: 640.116974 | L6: =J6-$K$4 -> 20.938736
A7: perphenazine 0.1uM | B7: 830.838894 | D7: =B7-$C$4 -> 79.024424 | F7: 291600 | H7: =F7-$G$4 -> 196077 | J7: 641.458723 | L7: =J7-$K$4 -> 22.280485
A8: perphenazine 1uM | B8: 833.091613 | D8: =B8-$C$4 -> 81.277143 | F8: 275350 | H8: =F8-$G$4 -> 179827 | J8: 645.360936 | L8: =J8-$K$4 -> 26.182698
A9: prochlorperazine 0.1uM | B9: 801.193548 | D9: =B9-$C$9 -> 801.193548 | F9: 251127 | H9: =F9-$G$9 -> 251127 | J9: 639.179584 | L9: =J9-$K$9 -> 639.179584
A10: prochlorperazine 1uM | B10: 808.471429 | D10: =B10-$C$9 -> 808.471429 | F10: 234410 | H10: =F10-$G$9 -> 234410 | J10: 652.176891 | L10: =J10-$K$9 -> 652.176891
B12: Densitometry/Intensity ratio | C12: Background level | D12: Densitometry - Background level | F12: Densitometry/Intensity ratio | G12: Background level | H12: Densitometry - Background level | J12: Densitometry/Intensity ratio | K12: Background level | L12: Densitometry - Background level
A13: U87-MG control | B13: 3112.141612 | C13: 1538.071895 | D13: =B13-$C$13 -> 1574.069717 | F13: 936896 | G13: 573117 | H13: =F13-$G$13 -> 363779 | J13: 773.642185 | K13: 732.671472 | L13: =J13-$K$13 -> 40.970713
A14: U87-MG control DMSO | B14: 2973.191721 | D14: =B14-$C$13 -> 1435.119826 | F14: 884451 | H14: =F14-$G$13 -> 311334 | J14: 771.454445 | L14: =J14-$K$13 -> 38.782973
A15: Elacridar DMSO | B15: 2167.440087 | D15: =B15-$C$13 -> 629.368192 | F15: 844544 | H15: =F15-$G$13 -> 271427 | J15: 770.317618 | L15: =J15-$K$13 -> 37.646146
A16: perphenazine 0.1uM | B16: 2498.760349 | D16: =B16-$C$13 -> 960.688454 | F16: 900530 | H16: =F16-$G$13 -> 327413 | J16: 779.31067 | L16: =J16-$K$13 -> 46.639198
A17: perphenazine 1uM | B17: 2766.45098 | D17: =B17-$C$13 -> 1228.379085 | F17: 939574 | H17: =F17-$G$13 -> 366457 | J17: 796.298396 | L17: =J17-$K$13 -> 63.626924
A18: prochlorperazine 0.1uM | B18: 2724.980392 | D18: =B18-$C$13 -> 1186.908497 | F18: 996893 | H18: =F18-$G$13 -> 423776 | J18: 795.162478 | L18: =J18-$K$13 -> 62.491006
A19: prochlorperazine 1uM | B19: 2725.333333 | D19: =B19-$C$13 -> 1187.261438 | F19: 903280 | H19: =F19-$G$13 -> 330163 | J19: 819.477499 | L19: =J19-$K$13 -> 86.806027
B21: Densitometry/Intensity ratio | C21: Background level | D21: Densitometry - Background level | F21: Densitometry/Intensity ratio | G21: Background level | H21: Densitometry - Background level | J21: Densitometry/Intensity ratio | K21: Background level | L21: Densitometry - Background level
A22: U87-MG control | B22: 15356.89722 | C22: 8997.575 | D22: =B22-$C$22 -> 6359.322222 | F22: 793906 | G22: 648803 | H22: =F22-$G$22 -> 145103 | J22: 16857.98508 | K22: 15125.2676 | L22: =J22-$K$22 -> 1732.717483
A23: U87-MG control DMSO | B23: 14985.36111 | D23: =B23-$C$22 -> 5987.786111 | F23: 787423 | H23: =F23-$G$22 -> 138620 | J23: 16654.10163 | L23: =J23-$K$22 -> 1528.834033
A24: Elacridar DMSO | B24: 13752.69167 | D24: =B24-$C$22 -> 4755.116667 | F24: 846710 | H24: =F24-$G$22 -> 197907 | J24: 17514.29044 | L24: =J24-$K$22 -> 2389.022844
A25: perphenazine 0.1uM | B25: 13171.67222 | D25: =B25-$C$22 -> 4174.097222 | F25: 801197 | H25: =F25-$G$22 -> 152394 | J25: 17638.03496 | L25: =J25-$K$22 -> 2512.767366
A26: perphenazine 1uM | B26: 14386.43333 | D26: =B26-$C$22 -> 5388.858333 | F26: 802784 | H26: =F26-$G$22 -> 153981 | J26: 17692.04056 | L26: =J26-$K$22 -> 2566.77296
A27: prochlorperazine 0.1uM | B27: 13527.725 | D27: =B27-$C$22 -> 4530.15 | F27: 801682 | H27: =F27-$G$22 -> 152879 | J27: 17567.99114 | L27: =J27-$K$22 -> 2442.723543
A28: prochlorperazine 1uM | B28: 13984.49722 | D28: =B28-$C$22 -> 4986.922222 | F28: 800670 | H28: =F28-$G$22 -> 151867 | J28: 19272.64103 | L28: =J28-$K$22 -> 4147.373427

Sheet U87-MG Fig.5 proteins
C1: a3-integrin | G1: a-tubulin | K1: b1-integrin | O1: a5-integrin | S1: E-cadherin | W1: b-actin
B3: Densitometry/Intensity ratio | C3: Background level | D3: Densitometry - Background level | F3: Densitometry/Intensity ratio | G3: Background level | H3: Densitometry - Background level | J3: Densitometry/Intensity ratio | K3: Background level | L3: Densitometry - Background level | N3: Densitometry/Intensity ratio | O3: Background level | P3: Densitometry - Background level | R3: Densitometry/Intensity ratio | S3: Background level | T3: Densitometry - Background level | V3: Densitometry/Intensity ratio | W3: Background level | X3: Densitometry - Background level
A4: U87-MG control | B4: 239255 | C4: 61494 | D4: =B4-$C$4 -> 177761 | F4: 500705 | G4: 157391 | H4: =F4-$G$4 -> 343314 | J4: 412849 | K4: 99829 | L4: =J4-$K$4 -> 313020 | N4: 737163 | O4: 425443 | P4: =N4-$O$4 -> 311720 | R4: 589196 | S4: 263982 | T4: =R4-$S$4 -> 325214 | V4: 402014 | W4: 58417 | X4: =V4-$W$4 -> 343597
A5: perphenazine 0.25uM | B5: 225056 | D5: =B5-$C$4 -> 163562 | F5: 915086 | H5: =F5-$G$4 -> 757695 | J5: 964771 | L5: =J5-$K$4 -> 864942 | N5: 935851 | P5: =N5-$O$4 -> 510408 | R5: 996472 | T5: =R5-$S$4 -> 732490 | V5: 616659 | X5: =V5-$W$4 -> 558242
A6: perphenazine 0.5uM | B6: 207519 | D6: 146025 | F6: 356122 | H6: 198731 | J6: 504288 | L6: 404459 | N6: 752549 | P6: 327106 | R6: 759874 | T6: 495892 | V6: 443129 | X6: 384712
A7: perphenazine 1uM | B7: 221907 | D7: 160413 | F7: 302679 | H7: 145288 | J7: 285505 | L7: 185676 | N7: 734773 | P7: 309330 | R7: 649070 | T7: 385088 | V7: 458145 | X7: 399728
A8: prochlorperazine 0.25uM | B8: 322650 | D8: 261156 | F8: 784090 | H8: 626699 | J8: 616183 | L8: 516354 | N8: 777870 | P8: 352427 | R8: 772393 | T8: 508411 | V8: 473806 | X8: 415389
A9: prochlorperazine 0.5uM | B9: 255236 | D9: 193742 | F9: 662027 | H9: 504636 | J9: 433319 | L9: 333490 | N9: 744598 | P9: 319155 | R9: 706151 | T9: 442169 | V9: 451055 | X9: 392638
A10: prochlorperazine 1uM | B10: 250712 | D10: 189218 | F10: 369683 | H10: 212292 | J10: 348582 | L10: 248753 | N10: 879094 | P10: 453651 | R10: 657071 | T10: 393089 | V10: 678966 | X10: 620549
A11: bacitracin 1.25mM | B11: 507627 | D11: 446133 | F11: 1493833 | H11: 1336442 | J11: 1022815 | L11: 922986 | N11: 1117380 | P11: 691937 | R11: 1151467 | T11: 887485 | V11: 753535 | X11: 695118
A12: bacitracin 2.5 mM | B12: 458618 | D12: 397124 | F12: 1049202 | H12: 891811 | J12: 905751 | L12: 805922 | N12: 1111791 | P12: 686348 | R12: 1070076 | T12: 806094 | V12: 777452 | X12: 719035
A13: bacitracin 5mM | B13: 458010 | D13: 396516 | F13: 946758 | H13: 789367 | J13: 768870 | L13: 669041 | N13: 1106531 | P13: 681088 | R13: 1027992 | T13: 764010 | V13: 867739 | X13: 809322
B15: Densitometry/Intensity ratio | C15: Background level | D15: Densitometry - Background level | F15: Densitometry/Intensity ratio | G15: Background level | H15: Densitometry - Background level | J15: Densitometry/Intensity ratio | K15: Background level | L15: Densitometry - Background level | N15: Densitometry/Intensity ratio | O15: Background level | P15: Densitometry - Background level | R15: Densitometry/Intensity ratio | S15: Background level | T15: Densitometry - Background level | V15: Densitometry/Intensity ratio | W15: Background level | X15: Densitometry - Background level
A16: U87-MG control | B16: 269506 | C16: 74053 | D16: =B16-$C$16 -> 195453 | F16: 724984 | G16: 528626 | H16: =F16-$G$16 -> 196358 | J16: 536357 | K16: 119522 | L16: =J16-$K$16 -> 416835 | N16: 692666 | O16: 246047 | P16: =N16-$O$16 -> 446619 | R16: 801596 | S16: 354995 | T16: =R16-$S$16 -> 446601 | V16: 433025 | W16: 168058 | X16: =V16-$W$16 -> 264967
A17: perphenazine 0.25uM | B17: 266722 | D17: =B17-$C$16 -> 192669 | F17: 880259 | H17: =F17-$G$16 -> 351633 | J17: 1034572 | L17: =J17-$K$16 -> 915050 | N17: 873265 | P17: =N17-$O$16 -> 627218 | R17: 1179546 | T17: =R17-$S$16 -> 824551 | V17: 482507 | X17: =V17-$W$16 -> 314449
A18: perphenazine 0.5uM | B18: 297308 | D18: 223255 | F18: 673295 | H18: 144669 | J18: 871962 | L18: 752440 | N18: 750018 | P18: 503971 | R18: 1091326 | T18: 736331 | V18: 485537 | X18: 317479
A19: perphenazine 1uM | B19: 250664 | D19: 176611 | F19: 615620 | H19: 86994 | J19: 364408 | L19: 244886 | N19: 713426 | P19: 467379 | R19: 854889 | T19: 499894 | V19: 484494 | X19: 316436
A20: prochlorperazine 0.25uM | B20: 364646 | D20: 290593 | F20: 938454 | H20: 409828 | J20: 937118 | L20: 817596 | N20: 781546 | P20: 535499 | R20: 1092125 | T20: 737130 | V20: 487880 | X20: 319822
A21: prochlorperazine 0.5uM | B21: 252200 | D21: 178147 | F21: 834386 | H21: 305760 | J21: 560108 | L21: 440586 | N21: 708621 | P21: 462574 | R21: 947270 | T21: 592275 | V21: 450346 | X21: 282288
A22: prochlorperazine 1uM | B22: 167055 | D22: 93002 | F22: 594861 | H22: 66235 | J22: 339689 | L22: 220167 | N22: 683524 | P22: 437477 | R22: 758898 | T22: 403903 | V22: 473184 | X22: 305126
A23: bacitracin 1.25mM | B23: 391703 | D23: 317650 | F23: 1060299 | H23: 531673 | J23: 954525 | L23: 835003 | N23: 924463 | P23: 678416 | R23: 1236988 | T23: 881993 | V23: 583680 | X23: 415622
A24: bacitracin 2.5 mM | B24: 463374 | D24: 389321 | F24: 1006855 | H24: 478229 | J24: 958870 | L24: 839348 | N24: 1179505 | P24: 933458 | R24: 1457312 | T24: 1102317 | V24: 774439 | X24: 606381
A25: bacitracin 5mM | B25: 366461 | D25: 292408 | F25: 856516 | H25: 327890 | J25: 573201 | L25: 453679 | N25: 1011281 | P25: 765234 | R25: 1102611 | T25: 747616 | V25: 704248 | X25: 536190
B27: Densitometry/Intensity ratio | C27: Background level | D27: Densitometry - Background level | F27: Densitometry/Intensity ratio | G27: Background level | H27: Densitometry - Background level | J27: Densitometry/Intensity ratio | K27: Background level | L27: Densitometry - Background level | N27: Densitometry/Intensity ratio | O27: Background level | P27: Densitometry - Background level | R27: Densitometry/Intensity ratio | S27: Background level | T27: Densitometry - Background level | V27: Densitometry/Intensity ratio | W27: Background level | X27: Densitometry - Background level
A28: U87-MG control | B28: 408439 | C28: 188556 | D28: =B28-$C$28 -> 219883 | F28: 342418 | G28: 92073 | H28: =F28-$G$28 -> 250345 | J28: 435864 | K28: 66767 | L28: =J28-$K$28 -> 369097 | N28: 862472 | O28: 195796 | P28: =N28-$O$28 -> 666676 | R28: 655162 | S28: 427250 | T28: =R28-$S$28 -> 227912 | V28: 564276 | W28: 98701 | X28: =V28-$W$28 -> 465575
A29: perphenazine 0.25uM | B29: 355341 | D29: =B29-$C$28 -> 166785 | F29: 558883 | H29: =F29-$G$28 -> 466810 | J29: 764943 | L29: =J29-$K$28 -> 698176 | N29: 1157238 | P29: =N29-$O$28 -> 961442 | R29: 851760 | T29: =R29-$S$28 -> 424510 | V29: 710301 | X29: =V29-$W$28 -> 611600
A30: perphenazine 0.5uM | B30: 396513 | D30: 207957 | F30: 300978 | H30: 208905 | J30: 554758 | L30: 487991 | N30: 1023385 | P30: 827589 | R30: 777182 | T30: 349932 | V30: 672582 | X30: 573881
A31: perphenazine 1uM | B31: 336401 | D31: 147845 | F31: 166184 | H31: 74111 | J31: 281879 | L31: 215112 | N31: 784078 | P31: 588282 | R31: 672860 | T31: 245610 | V31: 575986 | X31: 477285
A32: prochlorperazine 0.25uM | B32: 425018 | D32: 236462 | F32: 487234 | H32: 395161 | J32: 597293 | L32: 530526 | N32: 755912 | P32: 560116 | R32: 685561 | T32: 258311 | V32: 506731 | X32: 408030
A33: prochlorperazine 0.5uM | B33: 377448 | D33: 188892 | F33: 521564 | H33: 429491 | J33: 563380 | L33: 496613 | N33: 915285 | P33: 719489 | R33: 747770 | T33: 320520 | V33: 640053 | X33: 541352
A34: prochlorperazine 1uM | B34: 292105 | D34: 103549 | F34: 168846 | H34: 76773 | J34: 292726 | L34: 225959 | N34: 837513 | P34: 641717 | R34: 653565 | T34: 226315 | V34: 640854 | X34: 542153
A35: bacitracin 1.25mM | B35: 419481 | D35: 230925 | F35: 494949 | H35: 402876 | J35: 457501 | L35: 390734 | N35: 793692 | P35: 597896 | R35: 686543 | T35: 259293 | V35: 493303 | X35: 394602
A36: bacitracin 2.5 mM | B36: 412001 | D36: 223445 | F36: 451037 | H36: 358964 | J36: 531442 | L36: 464675 | N36: 917528 | P36: 721732 | R36: 706736 | T36: 279486 | V36: 642937 | X36: 544236
A37: bacitracin 5mM | B37: 406974 | D37: 218418 | F37: 341561 | H37: 249488 | J37: 385786 | L37: 319019 | N37: 857095 | P37: 661299 | R37: 659253 | T37: 232003 | V37: 652483 | X37: 553782
